[Event "Titled Tuesday Blitz June 27 Late 2023"]
[White "Tari, Aryan"]
[Black "Gokerkan, Cem Kaan"]
[WhiteFideId "1510045"]
[BlackFideId "6336760"]
[WhiteElo "2922"]
[BlackElo "2686"]
[Result "0-1"]
[Round "5"]
[TimeControl "180+2"]
[Date "2023.06.27"]
[WhiteClock "0:00:14"]
[BlackClock "0:00:06"]
[Board "23"]

1. e4 {[%clk 0:02:58]}  e5 {[%clk 0:02:57]} 2. Nf3 {[%clk 0:02:54]}  Nf6 {[%clk 0:02:57]} 3. d3 {[%clk 0:02:51]}  Nc6 {[%clk 0:02:57]} 4. g3 {[%clk 0:02:51]}  d5 {[%clk 0:02:57]} 5. exd5 {[%clk 0:02:52]}  Qxd5 {[%clk 0:02:28]} 6. Bg2 {[%clk 0:02:50]}  Bg4 {[%clk 0:02:28]} 7. h3 {[%clk 0:02:49]}  Bxf3 {[%clk 0:02:28]} 8. Bxf3 {[%clk 0:02:45]}  Qa5+ {[%clk 0:01:56]} 9. c3 {[%clk 0:02:36]}  Rd8 {[%clk 0:01:47]} 10. O-O {[%clk 0:02:30]}  Be7 {[%clk 0:01:47]} 11. Qe2 {[%clk 0:02:24]}  O-O {[%clk 0:01:46]} 12. Nd2 {[%clk 0:02:24]}  Qa6 {[%clk 0:01:26]} 13. Nc4 {[%clk 0:02:22]}  Bd6 {[%clk 0:01:13]} 14. Bg5 {[%clk 0:02:17]}  b5 {[%clk 0:00:59]} 15. Bxf6 {[%clk 0:02:09]}  bxc4 {[%clk 0:00:52]} 16. Bxd8 {[%clk 0:02:00]}  cxd3 {[%clk 0:00:53]} 17. Qe4 {[%clk 0:02:00]}  Nxd8 {[%clk 0:00:53]} 18. Qd5 {[%clk 0:01:41]}  Kh8 {[%clk 0:00:44]} 19. Be4 {[%clk 0:01:41]}  f5 {[%clk 0:00:31]} 20. Bxd3 {[%clk 0:01:40]}  Qb6 {[%clk 0:00:32]} 21. b4 {[%clk 0:01:39]}  e4 {[%clk 0:00:32]} 22. Bc4 {[%clk 0:01:34]}  Bxg3 {[%clk 0:00:29]} 23. Rad1 {[%clk 0:01:16]}  Qg6 {[%clk 0:00:29]} 24. Kh1 {[%clk 0:01:06]}  Bd6 {[%clk 0:00:22]} 25. Rg1 {[%clk 0:00:50]}  Qh6 {[%clk 0:00:22]} 26. Kg2 {[%clk 0:00:45]}  Qh5 {[%clk 0:00:17]} 27. Qd2 {[%clk 0:00:32]}  Qf3+ {[%clk 0:00:14]} 28. Kf1 {[%clk 0:00:32]}  Qxh3+ {[%clk 0:00:15]} 29. Ke1 {[%clk 0:00:33]}  Nc6 {[%clk 0:00:14]} 30. Qg5 {[%clk 0:00:32]}  Qxc3+ {[%clk 0:00:12]} 31. Rd2 {[%clk 0:00:29]}  Bxb4 {[%clk 0:00:12]} 32. Bd5 {[%clk 0:00:28]}  h6 {[%clk 0:00:04]} 33. Rh1 {[%clk 0:00:19]}  Qxd2+ {[%clk 0:00:04]} 34. Qxd2 {[%clk 0:00:19]}  Bxd2+ {[%clk 0:00:05]} 35. Kxd2 {[%clk 0:00:20]}  Rd8 {[%clk 0:00:06]} 36. Ke3 {[%clk 0:00:20]}  Rxd5 {[%clk 0:00:06]} 37. Rc1 {[%clk 0:00:21]}  Rd6 {[%clk 0:00:07]} 38. Kf4 {[%clk 0:00:22]}  g6 {[%clk 0:00:07]} 39. Rb1 {[%clk 0:00:21]}  Kg7 {[%clk 0:00:07]} 40. Rb7 {[%clk 0:00:22]}  Rd7 {[%clk 0:00:05]} 41. a4 {[%clk 0:00:22]}  Kf6 {[%clk 0:00:05]} 42. Ke3 {[%clk 0:00:22]}  g5 {[%clk 0:00:06]} 43. Rb5 {[%clk 0:00:21]}  Ne5 {[%clk 0:00:05]} 44. a5 {[%clk 0:00:18]}  Ng4+ {[%clk 0:00:05]} 45. Ke2 {[%clk 0:00:18]}  h5 {[%clk 0:00:05]} 46. Rb8 {[%clk 0:00:18]}  h4 {[%clk 0:00:05]} 47. Rf8+ {[%clk 0:00:18]}  Ke5 {[%clk 0:00:05]} 48. Re8+ {[%clk 0:00:19]}  Kf4 {[%clk 0:00:06]} 49. Rh8 {[%clk 0:00:16]}  Ne5 {[%clk 0:00:05]} 50. a6 {[%clk 0:00:16]}  Nf3 {[%clk 0:00:04]} 51. Rh6 {[%clk 0:00:15]}  Rd2+ {[%clk 0:00:05]} 52. Kf1 {[%clk 0:00:15]}  Rd1+ {[%clk 0:00:06]} 53. Kg2 {[%clk 0:00:14]}  Rg1+ {[%clk 0:00:06]} 0-1


[Site "https://www.chess.com"]

[Event "Titled Tuesday Blitz June 27 Late 2023"]
[White "Vetoshko, Volodymyr"]
[Black "Durarbayli, Vasif"]
[WhiteFideId "14122480"]
[BlackFideId "13402935"]
[WhiteElo "2680"]
[BlackElo "2920"]
[Result "0-1"]
[Round "5"]
[TimeControl "180+2"]
[Date "2023.06.27"]
[WhiteClock "0:00:00"]
[BlackClock "0:00:11"]
[Board "24"]

1. e4 {[%clk 0:03:00]}  c5 {[%clk 0:02:59]} 2. Nf3 {[%clk 0:02:58]}  d6 {[%clk 0:03:00]} 3. d4 {[%clk 0:02:58]}  cxd4 {[%clk 0:03:01]} 4. Nxd4 {[%clk 0:02:58]}  Nf6 {[%clk 0:03:02]} 5. Nc3 {[%clk 0:02:59]}  Nc6 {[%clk 0:03:03]} 6. Nb3 {[%clk 0:02:48]}  g6 {[%clk 0:02:59]} 7. Be2 {[%clk 0:02:45]}  Bg7 {[%clk 0:02:58]} 8. g4 {[%clk 0:02:43]}  O-O {[%clk 0:02:53]} 9. g5 {[%clk 0:02:42]}  Nd7 {[%clk 0:02:51]} 10. Be3 {[%clk 0:02:39]}  a5 {[%clk 0:02:34]} 11. a3 {[%clk 0:02:28]}  a4 {[%clk 0:02:31]} 12. Nd4 {[%clk 0:02:28]}  Qa5 {[%clk 0:02:17]} 13. h4 {[%clk 0:02:25]}  Nc5 {[%clk 0:01:56]} 14. f3 {[%clk 0:02:21]}  Ne6 {[%clk 0:01:47]} 15. Nb5 {[%clk 0:02:09]}  Bd7 {[%clk 0:01:38]} 16. Qd2 {[%clk 0:02:05]}  Rfc8 {[%clk 0:01:36]} 17. Nd5 {[%clk 0:01:57]}  Bxb2 {[%clk 0:00:55]} 18. Rb1 {[%clk 0:01:55]}  Be5 {[%clk 0:00:53]} 19. Nb6 {[%clk 0:01:44]}  Rd8 {[%clk 0:00:52]} 20. Nxa8 {[%clk 0:01:19]}  Qxa8 {[%clk 0:00:53]} 21. f4 {[%clk 0:01:16]}  Bg7 {[%clk 0:00:52]} 22. f5 {[%clk 0:01:01]}  Nc5 {[%clk 0:00:43]} 23. f6 {[%clk 0:00:37]}  Nxe4 {[%clk 0:00:41]} 24. Qd5 {[%clk 0:00:27]}  Qa5+ {[%clk 0:00:27]} 25. c3 {[%clk 0:00:18]}  Nxc3 {[%clk 0:00:22]} 26. Nxc3 {[%clk 0:00:16]}  Qxc3+ {[%clk 0:00:23]} 27. Bd2 {[%clk 0:00:16]}  Qg3+ {[%clk 0:00:23]} 28. Kd1 {[%clk 0:00:11]}  exf6 {[%clk 0:00:22]} 29. Rxb7 {[%clk 0:00:10]}  Ne5 {[%clk 0:00:11]} 30. gxf6 {[%clk 0:00:07]}  Bxf6 {[%clk 0:00:10]} 31. Qxd6 {[%clk 0:00:06]}  Qg2 {[%clk 0:00:11]} 32. Re1 {[%clk 0:00:02]}  Qxb7 {[%clk 0:00:10]} 33. Qxf6 {[%clk 0:00:01]}  Qb3+ {[%clk 0:00:10]} 34. Kc1 {[%clk 0:00:00]}  Rc8+ {[%clk 0:00:11]} 0-1


[Site "https://www.chess.com"]

[Event "Titled Tuesday Blitz June 27 Late 2023"]
[White "Dardha, Daniel"]
[Black "Cuenca Jimenez, Jose Fernando"]
[WhiteFideId "240990"]
[BlackFideId "2255570"]
[WhiteElo "2901"]
[BlackElo "2677"]
[Result "1/2-1/2"]
[Round "5"]
[TimeControl "180+2"]
[Date "2023.06.27"]
[WhiteClock "0:00:54"]
[BlackClock "0:00:48"]
[Board "26"]

1. e4 {[%clk 0:02:59]}  d6 {[%clk 0:02:59]} 2. d4 {[%clk 0:02:59]}  Nf6 {[%clk 0:03:00]} 3. Nc3 {[%clk 0:02:59]}  e5 {[%clk 0:03:01]} 4. dxe5 {[%clk 0:03:00]}  dxe5 {[%clk 0:03:01]} 5. Qxd8+ {[%clk 0:03:01]}  Kxd8 {[%clk 0:03:02]} 6. Bc4 {[%clk 0:03:01]}  Bb4 {[%clk 0:03:02]} 7. Bd2 {[%clk 0:03:00]}  Ke7 {[%clk 0:03:01]} 8. Nd5+ {[%clk 0:02:59]}  Nxd5 {[%clk 0:03:00]} 9. Bxd5 {[%clk 0:02:59]}  Bxd2+ {[%clk 0:03:00]} 10. Kxd2 {[%clk 0:03:00]}  c6 {[%clk 0:03:00]} 11. Bb3 {[%clk 0:02:59]}  Be6 {[%clk 0:02:59]} 12. Ne2 {[%clk 0:02:55]}  Nd7 {[%clk 0:02:58]} 13. Ke3 {[%clk 0:02:54]}  Nc5 {[%clk 0:02:57]} 14. h4 {[%clk 0:02:48]}  a5 {[%clk 0:02:53]} 15. Bxe6 {[%clk 0:02:40]}  Kxe6 {[%clk 0:02:49]} 16. g3 {[%clk 0:02:22]}  h5 {[%clk 0:02:47]} 17. f4 {[%clk 0:02:21]}  f6 {[%clk 0:02:44]} 18. a3 {[%clk 0:02:18]}  a4 {[%clk 0:02:43]} 19. Rad1 {[%clk 0:02:17]}  Rad8 {[%clk 0:02:42]} 20. Rxd8 {[%clk 0:02:10]}  Rxd8 {[%clk 0:02:41]} 21. Rg1 {[%clk 0:02:10]}  Rh8 {[%clk 0:02:31]} 22. Nc1 {[%clk 0:02:05]}  Rd8 {[%clk 0:02:26]} 23. Nd3 {[%clk 0:02:03]}  Nxd3 {[%clk 0:02:25]} 24. cxd3 {[%clk 0:02:04]}  Rd7 {[%clk 0:02:20]} 25. Rc1 {[%clk 0:02:04]}  Kd6 {[%clk 0:02:13]} 26. d4 {[%clk 0:02:01]}  exd4+ {[%clk 0:02:12]} 27. Kxd4 {[%clk 0:02:02]}  b5 {[%clk 0:02:08]} 28. Rc5 {[%clk 0:02:00]}  g6 {[%clk 0:01:53]} 29. e5+ {[%clk 0:01:43]}  Kc7+ {[%clk 0:01:51]} 30. Ke3 {[%clk 0:01:40]}  f5 {[%clk 0:01:51]} 31. Rc2 {[%clk 0:01:35]}  Kb6 {[%clk 0:01:45]} 32. Rd2 {[%clk 0:01:34]}  Rxd2 {[%clk 0:01:45]} 33. Kxd2 {[%clk 0:01:35]}  c5 {[%clk 0:01:46]} 34. Kc3 {[%clk 0:01:32]}  Kc6 {[%clk 0:01:44]} 35. b3 {[%clk 0:01:31]}  axb3 {[%clk 0:01:40]} 36. Kxb3 {[%clk 0:01:32]}  Kd5 {[%clk 0:01:41]} 37. Kc3 {[%clk 0:01:09]}  Kc6 {[%clk 0:01:35]} 38. Kb2 {[%clk 0:01:10]}  c4 {[%clk 0:01:10]} 39. Kc2 {[%clk 0:00:59]}  Kd5 {[%clk 0:01:08]} 40. Kd2 {[%clk 0:00:59]}  Kc6 {[%clk 0:01:05]} 41. Ke2 {[%clk 0:00:59]}  Kd5 {[%clk 0:01:00]} 42. Kd1 {[%clk 0:00:59]}  Kc6 {[%clk 0:00:58]} 43. Kc1 {[%clk 0:00:59]}  Kd5 {[%clk 0:00:53]} 44. Kd2 {[%clk 0:01:00]}  Kc6 {[%clk 0:00:52]} 45. Kc3 {[%clk 0:01:00]}  Kc5 {[%clk 0:00:52]} 46. Kb2 {[%clk 0:00:57]}  Kd5 {[%clk 0:00:51]} 47. Kc2 {[%clk 0:00:56]}  Kc6 {[%clk 0:00:51]} 48. Kd2 {[%clk 0:00:54]}  Kd5 {[%clk 0:00:50]} 49. Ke2 {[%clk 0:00:55]}  Kc6 {[%clk 0:00:48]} 50. Kf2 {[%clk 0:00:54]}  Kd5 {[%clk 0:00:48]} 51. Ke3 {[%clk 0:00:54]}  Kc5 {[%clk 0:00:48]} 52. Kd2 {[%clk 0:00:54]}  Kc6 {[%clk 0:00:48]} 1/2-1/2


[Site "https://www.chess.com"]

[Event "Titled Tuesday Blitz June 27 Late 2023"]
[White "Suleymanli, Aydin"]
[Black "Alex_Sahakyan2006"]
[WhiteFideId "13413937"]
[WhiteElo "2901"]
[BlackElo "2676"]
[Result "1-0"]
[Round "5"]
[TimeControl "180+2"]
[Date "2023.06.27"]
[WhiteClock "0:00:06"]
[BlackClock "0:00:00"]
[Board "27"]

1. e4 {[%clk 0:02:47]}  e5 {[%clk 0:02:59]} 2. Nf3 {[%clk 0:02:46]}  Nc6 {[%clk 0:02:59]} 3. Bb5 {[%clk 0:02:40]}  a6 {[%clk 0:02:56]} 4. Ba4 {[%clk 0:02:40]}  d6 {[%clk 0:02:55]} 5. Nc3 {[%clk 0:02:36]}  Bd7 {[%clk 0:02:52]} 6. O-O {[%clk 0:02:32]}  g6 {[%clk 0:02:52]} 7. d4 {[%clk 0:02:32]}  Bg7 {[%clk 0:02:51]} 8. dxe5 {[%clk 0:02:29]}  Nxe5 {[%clk 0:02:44]} 9. Nxe5 {[%clk 0:02:28]}  dxe5 {[%clk 0:02:40]} 10. Bxd7+ {[%clk 0:01:58]}  Qxd7 {[%clk 0:02:41]} 11. Qf3 {[%clk 0:01:58]}  Ne7 {[%clk 0:02:28]} 12. Bg5 {[%clk 0:01:53]}  f6 {[%clk 0:02:21]} 13. Rfd1 {[%clk 0:01:33]}  Qe6 {[%clk 0:02:18]} 14. Be3 {[%clk 0:01:27]}  O-O {[%clk 0:02:07]} 15. Bc5 {[%clk 0:01:26]}  Rfd8 {[%clk 0:02:07]} 16. Bxe7 {[%clk 0:01:25]}  Qxe7 {[%clk 0:02:04]} 17. Nd5 {[%clk 0:01:26]}  Qf7 {[%clk 0:02:00]} 18. a4 {[%clk 0:01:26]}  Rd6 {[%clk 0:01:51]} 19. Rd3 {[%clk 0:01:24]}  Rad8 {[%clk 0:01:50]} 20. Rad1 {[%clk 0:01:24]}  b5 {[%clk 0:01:43]} 21. a5 {[%clk 0:01:20]}  Bf8 {[%clk 0:01:06]} 22. c3 {[%clk 0:00:31]}  c6 {[%clk 0:00:56]} 23. Nb6 {[%clk 0:00:30]}  Qb3 {[%clk 0:00:48]} 24. Rxd6 {[%clk 0:00:22]}  Rxd6 {[%clk 0:00:49]} 25. Rxd6 {[%clk 0:00:22]}  Bxd6 {[%clk 0:00:50]} 26. h4 {[%clk 0:00:22]}  Kg7 {[%clk 0:00:37]} 27. Qd3 {[%clk 0:00:18]}  Bc5 {[%clk 0:00:30]} 28. Nd7 {[%clk 0:00:10]}  Be7 {[%clk 0:00:30]} 29. Nb8 {[%clk 0:00:09]}  Qxb2 {[%clk 0:00:30]} 30. Nxc6 {[%clk 0:00:09]}  Qc1+ {[%clk 0:00:30]} 31. Kh2 {[%clk 0:00:09]}  Bc5 {[%clk 0:00:21]} 32. Qf3 {[%clk 0:00:04]}  Qd2 {[%clk 0:00:16]} 33. Kg3 {[%clk 0:00:02]}  Qd6 {[%clk 0:00:16]} 34. Nb4 {[%clk 0:00:03]}  Bxb4 {[%clk 0:00:16]} 35. cxb4 {[%clk 0:00:03]}  Qxb4 {[%clk 0:00:17]} 36. Qg4 {[%clk 0:00:01]}  f5 {[%clk 0:00:14]} 37. Qg5 {[%clk 0:00:01]}  f4+ {[%clk 0:00:05]} 38. Kh3 {[%clk 0:00:01]}  Qd6 {[%clk 0:00:06]} 39. Qg4 {[%clk 0:00:01]}  b4 {[%clk 0:00:03]} 40. Qc8 {[%clk 0:00:01]}  Kf6 {[%clk 0:00:01]} 41. Qb7 {[%clk 0:00:02]}  Qe6+ {[%clk 0:00:02]} 42. Kh2 {[%clk 0:00:02]}  Qd6 {[%clk 0:00:02]} 43. h5 {[%clk 0:00:02]}  gxh5 {[%clk 0:00:02]} 44. Qxh7 {[%clk 0:00:02]}  Ke6 {[%clk 0:00:02]} 45. Qf5+ {[%clk 0:00:02]}  Ke7 {[%clk 0:00:03]} 46. Qxh5 {[%clk 0:00:03]}  Kd7 {[%clk 0:00:02]} 47. Qh7+ {[%clk 0:00:04]}  Kc6 {[%clk 0:00:02]} 48. Qf7 {[%clk 0:00:04]}  Kb5 {[%clk 0:00:02]} 49. g3 {[%clk 0:00:04]}  fxg3+ {[%clk 0:00:02]} 50. fxg3 {[%clk 0:00:05]}  Kxa5 {[%clk 0:00:02]} 51. g4 {[%clk 0:00:06]}  Kb5 {[%clk 0:00:02]} 52. g5 {[%clk 0:00:06]}  Qd2+ {[%clk 0:00:02]} 53. Kh3 {[%clk 0:00:06]}  Qe3+ {[%clk 0:00:02]} 54. Kh4 {[%clk 0:00:05]}  Qxe4+ {[%clk 0:00:02]} 55. Kh5 {[%clk 0:00:05]}  Qh1+ {[%clk 0:00:02]} 56. Kg6 {[%clk 0:00:06]}  Qe4+ {[%clk 0:00:02]} 57. Kh6 {[%clk 0:00:06]}  Qh4+ {[%clk 0:00:02]} 58. Kg6 {[%clk 0:00:05]}  e4 {[%clk 0:00:02]} 59. Qd5+ {[%clk 0:00:05]}  Kb6 {[%clk 0:00:02]} 60. Kg7 {[%clk 0:00:05]}  e3 {[%clk 0:00:02]} 61. Qe6+ {[%clk 0:00:06]}  Ka5 {[%clk 0:00:02]} 62. Qxe3 {[%clk 0:00:06]}  Ka4 {[%clk 0:00:01]} 63. g6 {[%clk 0:00:07]}  b3 {[%clk 0:00:00]} 64. Qb6 {[%clk 0:00:06]} 1-0


[Site "https://www.chess.com"]

[Event "Titled Tuesday Blitz June 27 Late 2023"]
[White "Ibarra Jerez, Jose Carlos"]
[Black "Stoleriu, George"]
[WhiteFideId "2226332"]
[BlackFideId "1227505"]
[WhiteElo "2890"]
[BlackElo "2671"]
[Result "1-0"]
[Round "5"]
[TimeControl "180+2"]
[Date "2023.06.27"]
[WhiteClock "0:00:56"]
[BlackClock "0:00:00"]
[Board "29"]

1. e4 {[%clk 0:03:00]}  c6 {[%clk 0:02:58]} 2. Nf3 {[%clk 0:03:01]}  d5 {[%clk 0:02:59]} 3. d3 {[%clk 0:03:01]}  dxe4 {[%clk 0:02:57]} 4. dxe4 {[%clk 0:03:02]}  Qxd1+ {[%clk 0:02:57]} 5. Kxd1 {[%clk 0:03:03]}  g6 {[%clk 0:02:36]} 6. Ne5 {[%clk 0:02:57]}  Bg7 {[%clk 0:02:33]} 7. Nd3 {[%clk 0:02:58]}  Nf6 {[%clk 0:02:29]} 8. f3 {[%clk 0:02:58]}  Nfd7 {[%clk 0:02:24]} 9. Bf4 {[%clk 0:02:50]}  Na6 {[%clk 0:02:22]} 10. c3 {[%clk 0:02:47]}  Nac5 {[%clk 0:02:20]} 11. Nf2 {[%clk 0:02:43]}  a5 {[%clk 0:02:10]} 12. Kc2 {[%clk 0:02:41]}  Ne6 {[%clk 0:02:06]} 13. Be3 {[%clk 0:02:41]}  b6 {[%clk 0:01:53]} 14. a4 {[%clk 0:02:39]}  Ba6 {[%clk 0:01:52]} 15. Bxa6 {[%clk 0:02:34]}  Rxa6 {[%clk 0:01:53]} 16. Na3 {[%clk 0:02:34]}  Kd8 {[%clk 0:01:53]} 17. Rhd1 {[%clk 0:02:32]}  Kc7 {[%clk 0:01:53]} 18. Nc4 {[%clk 0:02:32]}  Ne5 {[%clk 0:01:50]} 19. Nd2 {[%clk 0:02:26]}  g5 {[%clk 0:01:47]} 20. g3 {[%clk 0:02:23]}  h5 {[%clk 0:01:45]} 21. f4 {[%clk 0:02:13]}  gxf4 {[%clk 0:01:38]} 22. gxf4 {[%clk 0:02:14]}  Ng4 {[%clk 0:01:39]} 23. Nxg4 {[%clk 0:02:14]}  hxg4 {[%clk 0:01:39]} 24. f5 {[%clk 0:02:15]}  Nc5 {[%clk 0:01:20]} 25. Rg1 {[%clk 0:02:14]}  Be5 {[%clk 0:01:15]} 26. Bxc5 {[%clk 0:02:08]}  bxc5 {[%clk 0:01:13]} 27. Nc4 {[%clk 0:02:09]}  Rxh2+ {[%clk 0:01:07]} 28. Kb3 {[%clk 0:02:09]}  f6 {[%clk 0:00:57]} 29. Rxg4 {[%clk 0:02:09]}  Ra8 {[%clk 0:00:58]} 30. Rg7 {[%clk 0:02:06]}  Rb8+ {[%clk 0:00:58]} 31. Ka3 {[%clk 0:02:06]}  Bd6 {[%clk 0:00:50]} 32. Rd1 {[%clk 0:01:52]}  Re2 {[%clk 0:00:07]} 33. b3 {[%clk 0:01:17]}  Rd8 {[%clk 0:00:05]} 34. Nxd6 {[%clk 0:01:12]}  Rxd6 {[%clk 0:00:06]} 35. Rxe7+ {[%clk 0:01:12]}  Kd8 {[%clk 0:00:07]} 36. Rxd6+ {[%clk 0:01:10]}  Kxe7 {[%clk 0:00:07]} 37. Rxc6 {[%clk 0:01:04]}  Rxe4 {[%clk 0:00:03]} 38. Rxc5 {[%clk 0:01:04]}  Re5 {[%clk 0:00:03]} 39. Rxe5+ {[%clk 0:00:56]}  fxe5 {[%clk 0:00:04]} 40. b4 {[%clk 0:00:56]}  e4 {[%clk 0:00:00]} 41. Kb3 {[%clk 0:00:56]} 1-0


[Site "https://www.chess.com"]

[Event "Titled Tuesday Blitz June 27 Late 2023"]
[White "Hansen, Eric"]
[Black "Camacho Collados, Marcos"]
[WhiteFideId "2606771"]
[BlackFideId "2266237"]
[WhiteElo "2876"]
[BlackElo "2661"]
[Result "1-0"]
[Round "5"]
[TimeControl "180+2"]
[Date "2023.06.27"]
[WhiteClock "0:01:11"]
[BlackClock "0:00:59"]
[Board "31"]

1. d4 {[%clk 0:02:38]}  Nf6 {[%clk 0:02:58]} 2. c4 {[%clk 0:02:38]}  e6 {[%clk 0:02:59]} 3. Nc3 {[%clk 0:02:39]}  Bb4 {[%clk 0:02:59]} 4. e3 {[%clk 0:02:39]}  O-O {[%clk 0:02:58]} 5. Ne2 {[%clk 0:02:39]}  d6 {[%clk 0:02:55]} 6. a3 {[%clk 0:02:39]}  Bxc3+ {[%clk 0:02:55]} 7. Nxc3 {[%clk 0:02:40]}  Nbd7 {[%clk 0:02:53]} 8. e4 {[%clk 0:02:40]}  e5 {[%clk 0:02:53]} 9. Be3 {[%clk 0:02:39]}  a5 {[%clk 0:02:52]} 10. f3 {[%clk 0:02:39]}  Re8 {[%clk 0:02:52]} 11. Be2 {[%clk 0:02:39]}  Nh5 {[%clk 0:02:50]} 12. O-O {[%clk 0:02:38]}  b6 {[%clk 0:02:49]} 13. Rf2 {[%clk 0:02:37]}  Bb7 {[%clk 0:02:47]} 14. Bf1 {[%clk 0:02:38]}  Nf4 {[%clk 0:02:43]} 15. b4 {[%clk 0:02:29]}  exd4 {[%clk 0:02:27]} 16. Bxd4 {[%clk 0:02:24]}  Qg5 {[%clk 0:02:22]} 17. Kh1 {[%clk 0:02:20]}  Re6 {[%clk 0:02:08]} 18. g3 {[%clk 0:02:08]}  Rg6 {[%clk 0:02:08]} 19. Nd5 {[%clk 0:02:00]}  Nh5 {[%clk 0:01:53]} 20. f4 {[%clk 0:01:51]}  Nxg3+ {[%clk 0:01:48]} 21. hxg3 {[%clk 0:01:52]}  Qxg3 {[%clk 0:01:48]} 22. Rg2 {[%clk 0:01:52]}  Qh4+ {[%clk 0:01:37]} 23. Rh2 {[%clk 0:01:40]}  Qg3 {[%clk 0:01:27]} 24. Rh3 {[%clk 0:01:19]}  Rh6 {[%clk 0:01:11]} 25. Rxh6 {[%clk 0:01:15]}  gxh6 {[%clk 0:01:11]} 26. Qd3 {[%clk 0:01:11]}  Qg6 {[%clk 0:00:59]} 27. Ne7+ {[%clk 0:01:11]} 1-0


[Site "https://www.chess.com"]

[Event "Titled Tuesday Blitz June 27 Late 2023"]
[White "Papp, Levente"]
[Black "Miladinovic, Igor"]
[WhiteFideId "751243"]
[BlackFideId "4203380"]
[WhiteElo "2659"]
[BlackElo "2868"]
[Result "1-0"]
[Round "5"]
[TimeControl "180+2"]
[Date "2023.06.27"]
[WhiteClock "0:01:26"]
[BlackClock "0:00:34"]
[Board "32"]

1. b3 {[%clk 0:03:00]}  e5 {[%clk 0:02:58]} 2. Bb2 {[%clk 0:03:01]}  Nc6 {[%clk 0:02:59]} 3. c4 {[%clk 0:03:01]}  Nf6 {[%clk 0:02:58]} 4. Nc3 {[%clk 0:03:00]}  Bc5 {[%clk 0:02:56]} 5. g3 {[%clk 0:02:58]}  d5 {[%clk 0:02:44]} 6. cxd5 {[%clk 0:02:58]}  Nxd5 {[%clk 0:02:45]} 7. Bg2 {[%clk 0:02:59]}  Nxc3 {[%clk 0:02:45]} 8. Bxc3 {[%clk 0:03:00]}  O-O {[%clk 0:02:40]} 9. d3 {[%clk 0:02:45]}  Nd4 {[%clk 0:02:28]} 10. Nf3 {[%clk 0:02:42]}  Qe7 {[%clk 0:02:23]} 11. O-O {[%clk 0:02:39]}  Bg4 {[%clk 0:02:19]} 12. Bxd4 {[%clk 0:02:34]}  exd4 {[%clk 0:02:18]} 13. Rc1 {[%clk 0:02:33]}  b6 {[%clk 0:02:16]} 14. Qd2 {[%clk 0:02:14]}  Rfe8 {[%clk 0:02:07]} 15. Qf4 {[%clk 0:02:13]}  Bxf3 {[%clk 0:01:33]} 16. Bxf3 {[%clk 0:02:14]}  Rad8 {[%clk 0:01:33]} 17. Rc4 {[%clk 0:01:47]}  a5 {[%clk 0:01:32]} 18. a3 {[%clk 0:01:37]}  b5 {[%clk 0:01:04]} 19. Rc2 {[%clk 0:01:33]}  g5 {[%clk 0:00:46]} 20. Qf5 {[%clk 0:01:27]}  Qe5 {[%clk 0:00:40]} 21. Rxc5 {[%clk 0:01:26]}  Qxf5 {[%clk 0:00:38]} 22. Rxf5 {[%clk 0:01:27]}  h6 {[%clk 0:00:34]} 23. Rxb5 {[%clk 0:01:26]} 1-0


[Site "https://www.chess.com"]

[Event "Titled Tuesday Blitz June 27 Late 2023"]
[White "Erdogmus, Yagiz Kaan"]
[Black "Ashraf, Artin"]
[WhiteFideId "44599790"]
[BlackFideId "22514805"]
[WhiteElo "2867"]
[BlackElo "2653"]
[Result "1-0"]
[Round "5"]
[TimeControl "180+2"]
[Date "2023.06.27"]
[WhiteClock "0:00:04"]
[BlackClock "0:00:00"]
[Board "33"]

1. e4 {[%clk 0:02:44]}  c5 {[%clk 0:02:59]} 2. Nf3 {[%clk 0:02:43]}  d6 {[%clk 0:03:00]} 3. d4 {[%clk 0:02:44]}  cxd4 {[%clk 0:03:00]} 4. Nxd4 {[%clk 0:02:45]}  Nf6 {[%clk 0:03:01]} 5. Nc3 {[%clk 0:02:45]}  a6 {[%clk 0:03:02]} 6. h3 {[%clk 0:02:46]}  e6 {[%clk 0:02:54]} 7. g4 {[%clk 0:02:42]}  b5 {[%clk 0:02:53]} 8. Bg2 {[%clk 0:02:41]}  Bb7 {[%clk 0:02:53]} 9. g5 {[%clk 0:02:37]}  Nfd7 {[%clk 0:02:36]} 10. O-O {[%clk 0:02:34]}  Nc5 {[%clk 0:02:15]} 11. Re1 {[%clk 0:02:27]}  b4 {[%clk 0:02:10]} 12. Nd5 {[%clk 0:02:23]}  Nbd7 {[%clk 0:01:34]} 13. Nxb4 {[%clk 0:02:09]}  Qb6 {[%clk 0:01:29]} 14. c3 {[%clk 0:01:46]}  Be7 {[%clk 0:01:18]} 15. Nbc2 {[%clk 0:01:34]}  O-O {[%clk 0:01:16]} 16. a4 {[%clk 0:01:32]}  a5 {[%clk 0:01:09]} 17. h4 {[%clk 0:01:18]}  Ne5 {[%clk 0:00:59]} 18. Re2 {[%clk 0:00:50]}  Ba6 {[%clk 0:00:53]} 19. Nb5 {[%clk 0:00:43]}  Nxa4 {[%clk 0:00:47]} 20. Ncd4 {[%clk 0:00:40]}  Nc5 {[%clk 0:00:38]} 21. b4 {[%clk 0:00:33]}  axb4 {[%clk 0:00:31]} 22. cxb4 {[%clk 0:00:34]}  Ncd3 {[%clk 0:00:31]} 23. Be3 {[%clk 0:00:21]}  Bxb5 {[%clk 0:00:29]} 24. Nxe6 {[%clk 0:00:17]}  Qc6 {[%clk 0:00:19]} 25. Nxf8 {[%clk 0:00:17]}  Bxf8 {[%clk 0:00:17]} 26. Rxa8 {[%clk 0:00:15]}  Qxa8 {[%clk 0:00:17]} 27. Rd2 {[%clk 0:00:11]}  Nxb4 {[%clk 0:00:13]} 28. Rb2 {[%clk 0:00:10]}  Ned3 {[%clk 0:00:10]} 29. Rb1 {[%clk 0:00:09]}  d5 {[%clk 0:00:07]} 30. exd5 {[%clk 0:00:08]}  Qb8 {[%clk 0:00:06]} 31. Bf1 {[%clk 0:00:07]}  Bd6 {[%clk 0:00:05]} 32. Bxd3 {[%clk 0:00:05]}  Nxd3 {[%clk 0:00:04]} 33. Qb3 {[%clk 0:00:05]}  Qc8 {[%clk 0:00:02]} 34. Qxb5 {[%clk 0:00:04]}  Qg4+ {[%clk 0:00:01]} 35. Kf1 {[%clk 0:00:05]}  Qxh4 {[%clk 0:00:01]} 36. Qxd3 {[%clk 0:00:04]}  Qh3+ {[%clk 0:00:01]} 37. Ke2 {[%clk 0:00:04]}  Qg4+ {[%clk 0:00:02]} 38. f3 {[%clk 0:00:04]}  Qg2+ {[%clk 0:00:02]} 39. Bf2 {[%clk 0:00:04]}  Bc5 {[%clk 0:00:02]} 40. Rb8+ {[%clk 0:00:04]}  Bf8 {[%clk 0:00:00]} 41. Qa3 {[%clk 0:00:04]} 1-0


[Site "https://www.chess.com"]